[Event "Elitserien 2019/2020, round 1-3"]
[Site "Uppsala University, Gamla torget, Uppsala, Sweden"]
[Date "2019.10.18"]
[Round "1.22"]
[White "Ertan, Can"]
[Black "Rothen, Hakan"]
[Result "0-1"]
[TimeControl "90 minutes for 40 moves + 30 minutes for the rest of the game + 30 seconds per move from move one."]
[WhiteTitle "IM"]
[BlackTitle "FM"]
[WhiteFideId "6306330"]
[BlackFideId "1700723"]
[WhiteElo "2392"]
[BlackElo "2251"]

1. e4 {[%clk 01:30:58]} {[%emt 00:00:01]} e6 {[%clk 01:25:57]} {[%emt
00:05:03]} 2. d4 {[%clk 01:31:18]} {[%emt 00:00:11]} d5 {[%clk 01:26:19]}
{[%emt 00:00:08]} 3. Bd3 {[%clk 01:31:44]} {[%emt 00:00:04]} dxe4 {[%clk
01:25:12]} {[%emt 00:01:36]} 4. Bxe4 {[%clk 01:32:08]} {[%emt 00:00:06]} Nf6
{[%clk 01:25:29]} {[%emt 00:00:13]} 5. Bf3 {[%clk 01:32:35]} {[%emt 00:00:03]}
c5 {[%clk 01:23:59]} {[%emt 00:02:00]} 6. Ne2 {[%clk 01:32:42]} {[%emt
00:00:23]} Nc6 {[%clk 01:23:33]} {[%emt 00:00:57]} 7. Be3 {[%clk 01:32:58]}
{[%emt 00:00:14]} cxd4 {[%clk 01:12:16]} {[%emt 00:11:47]} 8. Nxd4 {[%clk
01:32:58]} {[%emt 00:00:29]} Bd7 {[%clk 01:12:36]} {[%emt 00:00:09]} 9. O-O
{[%clk 01:25:12]} {[%emt 00:08:16]} Be7 {[%clk 01:09:48]} {[%emt 00:03:18]} 10.
c4 {[%clk 01:18:29]} {[%emt 00:07:13]} O-O {[%clk 01:08:04]} {[%emt 00:02:14]}
11. Nc3 {[%clk 01:17:02]} {[%emt 00:01:58]} Nxd4 {[%clk 00:55:23]} {[%emt
00:13:11]} 12. Qxd4 {[%clk 01:13:48]} {[%emt 00:03:44]} Bc6 {[%clk 00:55:11]}
{[%emt 00:00:42]} 13. Bxc6 {[%clk 01:13:44]} {[%emt 00:00:35]} bxc6 {[%clk
00:53:50]} {[%emt 00:01:51]} 14. Rfd1 {[%clk 01:05:34]} {[%emt 00:08:39]} Qa5
{[%clk 00:51:46]} {[%emt 00:02:34]} 15. Qf4 {[%clk 01:02:45]} {[%emt 00:03:19]}
Rab8 {[%clk 00:44:24]} {[%emt 00:07:52]} 16. Bd4 {[%clk 00:59:59]} {[%emt
00:03:16]} Rb7 {[%clk 00:41:29]} {[%emt 00:03:25]} 17. Rd3 {[%clk 00:53:54]}
{[%emt 00:06:34]} Rd8 {[%clk 00:25:03]} {[%emt 00:16:57]} 18. Rh3 {[%clk
00:30:41]} {[%emt 00:23:44]} Rbd7 {[%clk 00:23:41]} {[%emt 00:01:51]} 19. Qe5
{[%clk 00:10:22]} {[%emt 00:20:49]} c5 {[%clk 00:23:17]} {[%emt 00:00:55]} 20.
Ne2 {[%clk 00:09:09]} {[%emt 00:01:43]} Qd2 {[%clk 00:19:04]} {[%emt 00:04:42]}
21. Qe3 {[%clk 00:09:35]} {[%emt 00:00:04]} Qxe3 {[%clk 00:19:22]} {[%emt
00:00:12]} 22. fxe3 {[%clk 00:10:01]} {[%emt 00:00:04]} cxd4 {[%clk 00:19:38]}
{[%emt 00:00:13]} 23. exd4 {[%clk 00:10:28]} {[%emt 00:00:04]} e5 {[%clk
00:19:35]} {[%emt 00:00:33]} 24. d5 {[%clk 00:10:02]} {[%emt 00:00:57]} Bc5+
{[%clk 00:19:41]} {[%emt 00:00:23]} 25. Kf1 {[%clk 00:10:28]} {[%emt 00:00:04]}
Ng4 {[%clk 00:18:52]} {[%emt 00:01:18]} 26. Rh4 {[%clk 00:10:07]} {[%emt
00:00:51]} Ne3+ {[%clk 00:19:09]} {[%emt 00:00:13]} 0-1

[Event "Elitserien 2019/2020, round 1-3"]
[Site "Uppsala University, Gamla torget, Uppsala, Sweden"]
[Date "2019.10.18"]
[Round "1.23"]
[White "Malesevic, Nedeljko"]
[Black "Renman, Nils-Gustaf"]
[Result "1-0"]
[TimeControl "90 minutes for 40 moves + 30 minutes for the rest of the game + 30 seconds per move from move one."]
[WhiteTitle "FM"]
[BlackTitle "IM"]
[WhiteFideId "1703447"]
[BlackFideId "1700367"]
[WhiteElo "2251"]
[BlackElo "2340"]

1. d4 {[%clk 01:30:57]} {[%emt 00:00:01]} d5 {[%clk 01:30:56]} {[%emt
00:00:05]} 2. c4 {[%clk 01:31:08]} {[%emt 00:00:19]} c6 {[%clk 01:31:20]}
{[%emt 00:00:06]} 3. cxd5 {[%clk 01:30:48]} {[%emt 00:00:49]} cxd5 {[%clk
01:31:42]} {[%emt 00:00:08]} 4. Bg5 {[%clk 01:30:28]} {[%emt 00:00:50]} Nc6
{[%clk 01:30:51]} {[%emt 00:01:22]} 5. Nc3 {[%clk 01:29:45]} {[%emt 00:01:13]}
h6 {[%clk 01:29:51]} {[%emt 00:01:30]} 6. Bh4 {[%clk 01:27:45]} {[%emt
00:02:30]} Nf6 {[%clk 01:24:34]} {[%emt 00:05:47]} 7. Bxf6 {[%clk 01:27:36]}
{[%emt 00:00:38]} gxf6 {[%clk 01:23:48]} {[%emt 00:01:17]} 8. e3 {[%clk
01:27:55]} {[%emt 00:00:11]} e6 {[%clk 01:20:15]} {[%emt 00:04:03]} 9. f4
{[%clk 01:27:38]} {[%emt 00:00:47]} Bd7 {[%clk 01:16:35]} {[%emt 00:04:10]} 10.
Nf3 {[%clk 01:18:13]} {[%emt 00:09:55]} Rc8 {[%clk 01:16:11]} {[%emt 00:00:54]}
11. a3 {[%clk 01:13:09]} {[%emt 00:05:34]} Na5 {[%clk 01:14:19]} {[%emt
00:02:21]} 12. Nd2 {[%clk 01:09:32]} {[%emt 00:04:07]} a6 {[%clk 01:10:12]}
{[%emt 00:04:38]} 13. Be2 {[%clk 01:00:13]} {[%emt 00:09:49]} b5 {[%clk
01:08:26]} {[%emt 00:02:17]} 14. O-O {[%clk 00:55:54]} {[%emt 00:04:49]} Bc6
{[%clk 01:07:27]} {[%emt 00:01:29]} 15. b4 {[%clk 00:52:24]} {[%emt 00:04:00]}
Nc4 {[%clk 01:06:57]} {[%emt 00:01:00]} 16. Nxc4 {[%clk 00:48:54]} {[%emt
00:04:00]} dxc4 {[%clk 01:07:16]} {[%emt 00:00:11]} 17. f5 {[%clk 00:48:20]}
{[%emt 00:01:04]} e5 {[%clk 00:57:25]} {[%emt 00:10:21]} 18. Bf3 {[%clk
00:38:31]} {[%emt 00:10:18]} exd4 {[%clk 00:50:17]} {[%emt 00:07:38]} 19. exd4
{[%clk 00:34:18]} {[%emt 00:04:43]} Qb6 {[%clk 00:48:24]} {[%emt 00:02:22]} 20.
Re1+ {[%clk 00:31:16]} {[%emt 00:03:33]} Be7 {[%clk 00:42:40]} {[%emt
00:06:14]} 21. Qe2 {[%clk 00:23:11]} {[%emt 00:08:35]} Qxd4+ {[%clk 00:42:00]}
{[%emt 00:01:10]} 22. Kh1 {[%clk 00:23:22]} {[%emt 00:00:19]} O-O {[%clk
00:41:44]} {[%emt 00:00:46]} 23. Bxc6 {[%clk 00:22:18]} {[%emt 00:01:34]} Rxc6
{[%clk 00:41:03]} {[%emt 00:01:11]} 24. Qf3 {[%clk 00:22:36]} {[%emt 00:00:12]}
Rc7 {[%clk 00:39:09]} {[%emt 00:02:25]} 25. Qg3+ {[%clk 00:21:42]} {[%emt
00:01:25]} 1-0

[Event "Elitserien 2019/2020, round 1-3"]
[Site "Uppsala University, Gamla torget, Uppsala, Sweden"]
[Date "2019.10.18"]
[Round "1.24"]
[White "Arman, Deniz"]
[Black "Thornert, Hakan"]
[Result "1-0"]
[TimeControl "90 minutes for 40 moves + 30 minutes for the rest of the game + 30 seconds per move from move one."]
[WhiteTitle "FM"]
[WhiteFideId "6302106"]
[BlackFideId "1703749"]
[WhiteElo "2333"]
[BlackElo "2183"]

1. e4 {[%clk 01:30:55]} {[%emt 00:00:03]} c5 {[%clk 01:25:46]} {[%emt
00:05:16]} 2. Nf3 {[%clk 01:31:12]} {[%emt 00:00:13]} d6 {[%clk 01:26:05]}
{[%emt 00:00:12]} 3. Bb5+ {[%clk 01:30:01]} {[%emt 00:01:41]} Nd7 {[%clk
01:25:59]} {[%emt 00:00:35]} 4. d4 {[%clk 01:30:21]} {[%emt 00:00:09]} cxd4
{[%clk 01:25:24]} {[%emt 00:01:06]} 5. Qxd4 {[%clk 01:30:45]} {[%emt 00:00:06]}
a6 {[%clk 01:25:17]} {[%emt 00:00:37]} 6. Bxd7+ {[%clk 01:31:09]} {[%emt
00:00:06]} Bxd7 {[%clk 01:25:40]} {[%emt 00:00:07]} 7. Bg5 {[%clk 01:26:21]}
{[%emt 00:05:18]} h6 {[%clk 01:11:06]} {[%emt 00:15:05]} 8. Bh4 {[%clk
01:23:14]} {[%emt 00:03:36]} Nf6 {[%clk 01:11:19]} {[%emt 00:00:17]} 9. Bxf6
{[%clk 01:15:40]} {[%emt 00:08:04]} gxf6 {[%clk 01:11:33]} {[%emt 00:00:16]} 10.
Nc3 {[%clk 01:15:49]} {[%emt 00:00:20]} Rg8 {[%clk 01:11:12]} {[%emt 00:00:51]}
11. O-O {[%clk 01:04:40]} {[%emt 00:11:39]} Rc8 {[%clk 01:06:08]} {[%emt
00:05:33]} 12. Kh1 {[%clk 01:01:30]} {[%emt 00:03:41]} Qa5 {[%clk 01:01:27]}
{[%emt 00:05:12]} 13. Nd5 {[%clk 00:50:03]} {[%emt 00:11:57]} Qc5 {[%clk
00:56:07]} {[%emt 00:05:49]} 14. Qd2 {[%clk 00:49:36]} {[%emt 00:00:57]} Qxc2
{[%clk 00:51:16]} {[%emt 00:05:22]} 15. Qe3 {[%clk 00:47:36]} {[%emt 00:02:30]}
f5 {[%clk 00:40:34]} {[%emt 00:11:13]} 16. Rfe1 {[%clk 00:39:18]} {[%emt
00:08:47]} Qc5 {[%clk 00:29:08]} {[%emt 00:11:55]} 17. Nd4 {[%clk 00:37:43]}
{[%emt 00:02:06]} f4 {[%clk 00:28:37]} {[%emt 00:01:02]} 18. Qd2 {[%clk
00:36:55]} {[%emt 00:01:17]} Bc6 {[%clk 00:17:27]} {[%emt 00:11:41]} 19. Rac1
{[%clk 00:34:53]} {[%emt 00:02:32]} Qa7 {[%clk 00:17:36]} {[%emt 00:00:21]} 20.
Nf5 {[%clk 00:34:33]} {[%emt 00:00:50]} f3 {[%clk 00:16:16]} {[%emt 00:01:50]}
21. Nxd6+ {[%clk 00:30:06]} {[%emt 00:04:57]} exd6 {[%clk 00:14:30]} {[%emt
00:02:16]} 22. Nf6+ {[%emt 00:00:07]} Kd8 {[%clk 00:14:43]} {[%emt 00:00:14]}
23. Nxg8 {[%clk 00:30:55]} {[%emt 00:00:07]} fxg2+ {[%clk 00:14:59]} {[%emt
00:00:15]} 24. Kg1 {[%clk 00:30:13]} {[%emt 00:01:10]} Kc7 {[%clk 00:15:14]}
{[%emt 00:00:16]} 25. Nxh6 {[%clk 00:30:15]} {[%emt 00:00:28]} Bxh6 {[%clk
00:12:18]} {[%emt 00:03:26]} 26. Qxh6 {[%clk 00:30:33]} {[%emt 00:00:13]} Rd8
{[%clk 00:12:24]} {[%emt 00:00:23]} 27. Qf4 {[%clk 00:30:25]} {[%emt 00:00:37]}
Qd4 {[%clk 00:12:25]} {[%emt 00:00:29]} 28. Qxf7+ {[%clk 00:25:57]} {[%emt
00:04:58]} Kb8 {[%clk 00:12:14]} {[%emt 00:00:42]} 29. b3 {[%clk 00:22:07]}
{[%emt 00:04:20]} Rh8 {[%clk 00:10:46]} {[%emt 00:01:55]} 30. Qf4 {[%clk
00:22:04]} {[%emt 00:00:35]} Ka8 {[%clk 00:08:49]} {[%emt 00:02:27]} 31. Rcd1
{[%clk 00:21:59]} {[%emt 00:00:35]} Qb2 {[%clk 00:05:08]} {[%emt 00:04:11]} 32.
Rd2 {[%clk 00:21:59]} {[%emt 00:00:29]} Qc3 {[%clk 00:05:14]} {[%emt 00:00:23]}
33. Qxd6 {[%clk 00:20:53]} {[%emt 00:01:38]} Qf3 {[%clk 00:03:32]} {[%emt
00:02:10]} 34. Qg3 {[%clk 00:20:41]} {[%emt 00:00:43]} Bxe4 {[%clk 00:03:21]}
{[%emt 00:00:43]} 35. Qe5 {[%clk 00:19:48]} {[%emt 00:01:23]} Qh5 {[%clk
00:00:39]} {[%emt 00:03:10]} 36. Qxh5 {[%clk 00:20:08]} {[%emt 00:00:13]} 1-0

[Event "Elitserien 2019/2020, round 1-3"]
[Site "Uppsala University, Gamla torget, Uppsala, Sweden"]
[Date "2019.10.18"]
[Round "1.25"]
[White "Miezis, Normunds"]
[Black "Hillarp Persson, Tiger"]
[Result "1-0"]
[TimeControl "90 minutes for 40 moves + 30 minutes for the rest of the game + 30 seconds per move from move one."]
[WhiteTitle "GM"]
[BlackTitle "GM"]
[WhiteFideId "11600136"]
[WhiteElo "2486"]
[BlackElo "2558"]

1. c4 {[%clk 01:30:55]} {[%emt 00:00:04]} e5 {[%clk 01:30:05]} {[%emt
00:00:56]} 2. Nc3 {[%clk 01:30:44]} {[%emt 00:00:40]} Bb4 {[%clk 01:30:28]}
{[%emt 00:00:07]} 3. Nf3 {[%clk 01:29:28]} {[%emt 00:01:46]} Bxc3 {[%clk
01:22:11]} {[%emt 00:08:47]} 4. dxc3 {[%clk 01:27:46]} {[%emt 00:02:12]} d6
{[%clk 01:21:59]} {[%emt 00:00:42]} 5. g3 {[%clk 01:26:47]} {[%emt 00:01:29]}
Nc6 {[%clk 01:02:18]} {[%emt 00:20:11]} 6. Bg2 {[%clk 01:25:32]} {[%emt
00:01:45]} f6 {[%clk 00:59:14]} {[%emt 00:03:34]} 7. Nd2 {[%clk 01:17:11]}
{[%emt 00:08:51]} Be6 {[%clk 00:57:34]} {[%emt 00:02:10]} 8. e4 {[%clk
01:07:52]} {[%emt 00:09:49]} Qd7 {[%clk 00:55:30]} {[%emt 00:02:34]} 9. Qh5+
{[%clk 01:07:45]} {[%emt 00:00:37]} g6 {[%clk 00:54:58]} {[%emt 00:01:02]} 10.
Qe2 {[%clk 01:07:27]} {[%emt 00:00:48]} Bh3 {[%clk 00:55:03]} {[%emt 00:00:26]}
11. f3 {[%clk 01:04:21]} {[%emt 00:03:36]} Bxg2 {[%clk 00:51:30]} {[%emt
00:04:04]} 12. Qxg2 {[%clk 01:02:12]} {[%emt 00:02:38]} f5 {[%clk 00:50:10]}
{[%emt 00:01:51]} 13. Nf1 {[%clk 00:58:33]} {[%emt 00:04:09]} O-O-O {[%clk
00:44:56]} {[%emt 00:05:44]} 14. Ne3 {[%clk 00:56:41]} {[%emt 00:02:21]} Rf8
{[%clk 00:39:07]} {[%emt 00:06:20]} 15. Bd2 {[%clk 00:56:48]} {[%emt 00:00:23]}
Nd8 {[%clk 00:35:44]} {[%emt 00:03:53]} 16. O-O-O {[%clk 00:54:23]} {[%emt
00:02:55]} Ne6 {[%clk 00:35:14]} {[%emt 00:01:00]} 17. b4 {[%clk 00:51:52]}
{[%emt 00:03:01]} h5 {[%clk 00:21:39]} {[%emt 00:14:06]} 18. c5 {[%clk
00:37:50]} {[%emt 00:14:31]} dxc5 {[%clk 00:17:59]} {[%emt 00:04:10]} 19. Nc4
{[%clk 00:35:17]} {[%emt 00:03:02]} Qa4 {[%clk 00:16:12]} {[%emt 00:02:17]} 20.
Kb1 {[%clk 00:30:46]} {[%emt 00:05:01]} Ne7 {[%clk 00:15:05]} {[%emt 00:01:37]}
21. Nxe5 {[%clk 00:30:23]} {[%emt 00:00:52]} cxb4 {[%clk 00:06:19]} {[%emt
00:09:16]} 22. cxb4 {[%clk 00:29:30]} {[%emt 00:01:22]} Rd8 {[%clk 00:06:38]}
{[%emt 00:00:12]} 23. Nf7 {[%clk 00:17:48]} {[%emt 00:12:12]} Rd3 {[%clk
00:07:00]} {[%emt 00:00:08]} 24. Nxh8 {[%clk 00:16:48]} {[%emt 00:01:30]} Nd4
{[%clk 00:04:09]} {[%emt 00:03:21]} 25. Rc1 {[%clk 00:15:48]} {[%emt 00:01:30]}
Nec6 {[%clk 00:01:22]} {[%emt 00:03:18]} 26. Bc3 {[%clk 00:13:34]} {[%emt
00:02:43]} a5 {[%clk 00:01:03]} {[%emt 00:00:50]} 27. bxa5 {[%clk 00:09:56]}
{[%emt 00:04:07]} fxe4 {[%emt 00:00:15]} 28. fxe4 {[%emt 00:00:15]} Nb5 {[%clk
00:01:38]} {[%emt 00:00:12]} 29. Bb2 {[%clk 00:04:46]} {[%emt 00:05:52]} Nb4
{[%clk 00:01:48]} {[%emt 00:00:21]} 30. Qh3+ {[%clk 00:04:36]} {[%emt
00:00:40]} Kb8 {[%clk 00:02:09]} {[%emt 00:00:09]} 31. Qe6 {[%clk 00:03:37]}
{[%emt 00:01:54]} Rd5 32. Qxd5 {[%emt 00:02:02]} Nxd5 {[%clk 00:01:09]} {[%emt
00:00:03]} 33. exd5 {[%emt 00:01:07]} Na3+ {[%emt 00:02:55]} 34. Ka1 {[%emt
00:00:09]} Nc2+ {[%emt 00:00:44]} 35. Rxc2 {[%clk 00:00:52]} {[%emt 00:00:03]}
Qxc2 36. d6 {[%clk 00:01:06]} {[%emt 00:01:21]} cxd6 37. Nf7 {[%clk 00:00:44]}
{[%emt 00:01:25]} Ka7 38. Nxd6 {[%emt 00:01:13]} Qd3 {[%clk 00:30:30]} {[%emt
00:00:35]} 1-0

[Event "Elitserien 2019/2020, round 1-3"]
[Site "Uppsala University, Gamla torget, Uppsala, Sweden"]
[Date "2019.10.18"]
[Round "1.26"]
[White "Haldorsen, Benjamin"]
[Black "Akesson, Ralf"]
[Result "1/2-1/2"]
[TimeControl "90 minutes for 40 moves + 30 minutes for the rest of the game + 30 seconds per move from move one."]
[WhiteTitle "IM"]
[BlackTitle "GM"]
[WhiteFideId "1512633"]
[BlackFideId "1700120"]
[WhiteElo "2440"]
[BlackElo "2367"]

1. c4 {[%clk 01:30:32]} {[%emt 00:00:27]} e6 {[%clk 01:30:02]} {[%emt
00:00:58]} 2. g3 {[%clk 01:30:48]} {[%emt 00:00:13]} d5 {[%clk 01:30:13]}
{[%emt 00:00:19]} 3. Nf3 {[%clk 01:31:09]} {[%emt 00:00:09]} Be7 {[%clk
01:26:56]} {[%emt 00:03:48]} 4. Bg2 {[%clk 01:31:27]} {[%emt 00:00:11]} Nf6
{[%clk 01:27:22]} {[%emt 00:00:05]} 5. O-O {[%clk 01:31:49]} {[%emt 00:00:08]}
O-O {[%clk 01:27:48]} {[%emt 00:00:05]} 6. d4 {[%clk 01:32:06]} {[%emt
00:00:12]} dxc4 {[%clk 01:26:50]} {[%emt 00:01:28]} 7. Ne5 {[%clk 01:32:16]}
{[%emt 00:00:21]} Nc6 {[%clk 01:26:33]} {[%emt 00:00:47]} 8. Nxc6 {[%clk
01:32:18]} {[%emt 00:00:28]} bxc6 {[%clk 01:26:55]} {[%emt 00:00:08]} 9. Na3
{[%clk 01:32:45]} {[%emt 00:00:03]} Bxa3 {[%clk 01:24:26]} {[%emt 00:02:59]} 10.
bxa3 {[%clk 01:29:34]} {[%emt 00:03:41]} Rb8 {[%clk 01:19:57]} {[%emt
00:04:58]} 11. Qa4 {[%clk 01:29:18]} {[%emt 00:00:47]} Rb6 {[%clk 01:12:31]}
{[%emt 00:07:56]} 12. Qxc4 {[%clk 01:11:16]} {[%emt 00:18:31]} Ba6 {[%clk
01:10:34]} {[%emt 00:02:28]} 13. Qc2 {[%clk 01:11:28]} {[%emt 00:00:18]} Qxd4
{[%clk 01:05:01]} {[%emt 00:06:03]} 14. Be3 {[%clk 01:10:42]} {[%emt 00:01:15]}
Rb2 {[%clk 01:01:23]} {[%emt 00:04:09]} 15. Qxc6 {[%clk 00:58:32]} {[%emt
00:12:40]} Qc4 {[%clk 00:56:00]} {[%emt 00:05:53]} 16. Rfc1 {[%clk 00:54:09]}
{[%emt 00:04:52]} Qxc6 {[%clk 00:55:46]} {[%emt 00:00:45]} 17. Bxc6 {[%clk
00:53:13]} {[%emt 00:01:26]} Rd8 {[%clk 00:48:30]} {[%emt 00:07:46]} 18. Bxa7
{[%clk 00:44:26]} {[%emt 00:09:17]} Bxe2 {[%clk 00:47:58]} {[%emt 00:01:02]} 19.
a4 {[%clk 00:41:19]} {[%emt 00:03:38]} h6 {[%clk 00:32:00]} {[%emt 00:16:27]}
20. a5 {[%clk 00:37:50]} {[%emt 00:03:58]} Nd5 {[%clk 00:28:34]} {[%emt
00:03:56]} 21. a4 {[%clk 00:33:47]} {[%emt 00:04:34]} Rd6 {[%clk 00:14:15]}
{[%emt 00:14:48]} 22. Bd4 {[%clk 00:24:45]} {[%emt 00:09:32]} Rb4 {[%clk
00:06:51]} {[%emt 00:07:54]} 23. Be5 {[%clk 00:18:33]} {[%emt 00:06:42]} Rd8
{[%clk 00:07:03]} {[%emt 00:00:18]} 24. Kg2 {[%clk 00:15:51]} {[%emt 00:03:12]}
f6 {[%clk 00:05:57]} {[%emt 00:01:36]} 25. Bc3 {[%clk 00:14:11]} {[%emt
00:02:10]} Rb3 {[%clk 00:04:58]} {[%emt 00:01:30]} 26. Be1 {[%clk 00:14:00]}
{[%emt 00:00:41]} Rdb8 {[%clk 00:02:04]} {[%emt 00:03:24]} 27. h3 {[%clk
00:12:59]} {[%emt 00:01:31]} Rb2 {[%clk 00:01:55]} {[%emt 00:00:39]} 28. Kg1
{[%clk 00:07:16]} {[%emt 00:06:13]} Bd3 {[%clk 00:01:27]} {[%emt 00:00:58]} 29.
Ra3 {[%clk 00:05:49]} {[%emt 00:01:57]} Ba6 {[%clk 00:01:26]} {[%emt 00:00:31]}
30. Raa1 {[%clk 00:05:31]} {[%emt 00:00:48]} Bd3 {[%clk 00:01:25]} {[%emt
00:00:31]} 31. Ra3 {[%clk 00:05:19]} {[%emt 00:00:43]} Ba6 {[%clk 00:01:36]}
{[%emt 00:00:18]} 1/2-1/2

[Event "Elitserien 2019/2020, round 1-3"]
[Site "Uppsala University, Gamla torget, Uppsala, Sweden"]
[Date "2019.10.18"]
[Round "1.27"]
[White "Vaarala, Eric"]
[Black "Ahlander, Bjorn"]
[Result "0-1"]
[TimeControl "90 minutes for 40 moves + 30 minutes for the rest of the game + 30 seconds per move from move one."]
[BlackTitle "IM"]
[WhiteFideId "1711962"]
[BlackFideId "1700251"]
[WhiteElo "2321"]
[BlackElo "2395"]

1. Nf3 {[%clk 01:30:41]} {[%emt 00:00:18]} Nf6 {[%clk 01:30:55]} {[%emt
00:00:05]} 2. c4 {[%clk 01:30:19]} {[%emt 00:00:52]} e6 {[%clk 01:31:17]}
{[%emt 00:00:08]} 3. b3 {[%clk 01:30:39]} {[%emt 00:00:10]} d5 {[%clk
01:31:03]} {[%emt 00:00:43]} 4. Bb2 {[%clk 01:31:02]} {[%emt 00:00:07]} c5
{[%clk 01:31:28]} {[%emt 00:00:06]} 5. cxd5 {[%clk 01:29:25]} {[%emt 00:02:07]}
exd5 {[%clk 01:31:00]} {[%emt 00:00:57]} 6. d4 {[%clk 01:29:27]} {[%emt
00:00:28]} cxd4 {[%clk 01:30:02]} {[%emt 00:01:30]} 7. a3 {[%clk 01:24:31]}
{[%emt 00:05:25]} Bd6 {[%clk 01:21:35]} {[%emt 00:08:57]} 8. Nxd4 {[%clk
01:16:21]} {[%emt 00:08:39]} O-O {[%clk 01:21:56]} {[%emt 00:00:10]} 9. e3
{[%clk 01:16:02]} {[%emt 00:00:49]} Nc6 {[%clk 01:20:18]} {[%emt 00:02:08]} 10.
Be2 {[%clk 01:15:38]} {[%emt 00:00:53]} Re8 {[%clk 01:18:55]} {[%emt 00:01:53]}
11. Nd2 {[%clk 01:13:47]} {[%emt 00:02:22]} a6 {[%clk 01:16:34]} {[%emt
00:02:50]} 12. Qc2 {[%clk 01:10:27]} {[%emt 00:03:50]} Bd7 {[%clk 01:12:13]}
{[%emt 00:04:51]} 13. Nxc6 {[%clk 01:08:28]} {[%emt 00:02:30]} bxc6 {[%clk
01:10:28]} {[%emt 00:02:14]} 14. O-O {[%clk 01:07:15]} {[%emt 00:01:43]} a5
{[%clk 01:03:11]} {[%emt 00:07:48]} 15. Bf3 {[%clk 01:03:21]} {[%emt 00:04:23]}
Ng4 {[%clk 00:57:45]} {[%emt 00:05:56]} 16. h3 {[%clk 00:52:07]} {[%emt
00:11:44]} Nh2 {[%clk 00:53:24]} {[%emt 00:04:50]} 17. Rfe1 {[%clk 00:37:53]}
{[%emt 00:14:44]} Qg5 {[%clk 00:51:28]} {[%emt 00:02:27]} 18. Kh1 {[%clk
00:35:59]} {[%emt 00:02:24]} Qh6 {[%clk 00:46:15]} {[%emt 00:05:44]} 19. Qd1
{[%clk 00:25:11]} {[%emt 00:11:18]} Re6 {[%clk 00:36:24]} {[%emt 00:10:22]} 20.
Bh5 {[%clk 00:17:36]} {[%emt 00:08:05]} Rae8 {[%clk 00:33:01]} {[%emt
00:03:53]} 21. Nf1 {[%clk 00:15:17]} {[%emt 00:02:50]} Nxf1 {[%clk 00:30:48]}
{[%emt 00:02:43]} 22. Rxf1 {[%clk 00:15:41]} {[%emt 00:00:05]} Re4 {[%clk
00:29:58]} {[%emt 00:01:20]} 23. f4 {[%clk 00:00:56]} {[%emt 00:15:16]} Rxe3
{[%clk 00:30:10]} {[%emt 00:00:18]} 24. Bg4 {[%clk 00:00:37]} {[%emt 00:00:49]}
f5 {[%clk 00:20:15]} {[%emt 00:10:25]} 25. Bh5 {[%clk 00:00:47]} {[%emt
00:00:20]} R8e7 {[%clk 00:14:39]} {[%emt 00:06:06]} 26. Bc1 {[%clk 00:00:41]}
{[%emt 00:00:36]} Rg3 {[%clk 00:12:35]} {[%emt 00:02:34]} 27. Bf3 {[%clk
00:00:38]} {[%emt 00:00:34]} Rxh3+ {[%clk 00:12:05]} {[%emt 00:01:00]} 28. gxh3
{[%clk 00:00:38]} {[%emt 00:00:29]} Qxh3+ {[%clk 00:12:29]} {[%emt 00:00:06]}
29. Kg1 {[%clk 00:01:04]} {[%emt 00:00:04]} Bc5+ {[%clk 00:11:31]} {[%emt
00:01:27]} 0-1